bitfinex/quotes_BTCUSD_20241229
["timestamp","ask_amount","ask_price","bid_price","bid_amount"]
[1735463450216,0.182835,95301.0,95298.0,0.0779]
[1735463450507,0.61997,95306.0,95298.0,0.0779]
[1735463450713,0.001,95302.0,95298.0,0.0789]
[1735463451171,0.001,95300.0,95298.0,0.0799]
[1735463451379,0.125287,95299.0,95298.0,0.0799]
[1735463451588,0.111687,95299.0,95298.0,0.0799]
[1735463452067,0.111687,95299.0,95298.0,0.0819]
[1735463452273,0.111687,95299.0,95298.0,0.0809]
[1735463452474,0.0164652,95307.0,95298.0,0.0779]
[1735463452779,0.321889,95306.0,95298.0,0.0819]
[1735463453507,0.001,95299.0,95298.0,0.0839]
[1735463453703,0.0164652,95307.0,95298.0,0.0799]
[1735463453898,0.384685,95306.0,95298.0,0.0799]
[1735463454200,0.300848,95306.0,95298.0,0.0799]
[1735463454416,0.484266,95306.0,95298.0,0.0789]
[1735463454940,0.484266,95306.0,95298.0,0.0779]
[1735463455238,0.484266,95306.0,95298.0,0.0789]
[1735463455374,0.484266,95306.0,95298.0,0.07535041]
[1735463455574,0.001,95299.0,95298.0,0.07735041]
[1735463455775,0.001,95299.0,95298.0,0.07535041]
[1735463456183,0.001,95299.0,95298.0,0.07735041]
[1735463456434,0.0164652,95307.0,95298.0,0.07535041]
[1735463456627,0.789839,95306.0,95298.0,0.07535041]
[1735463456764,0.001,95299.0,95298.0,0.07735041]
[1735463457170,0.001,95299.0,95298.0,0.07635041]
[1735463457394,0.0164652,95307.0,95298.0,0.07435041]
[1735463457593,0.787751,95306.0,95298.0,0.07635041]
[1735463457994,0.775559,95306.0,95298.0,0.07635041]
[1735463458225,0.775559,95306.0,95298.0,0.07435041]
[1735463458497,0.0164652,95307.0,95298.0,0.07535041]
[1735463458698,0.775559,95306.0,95298.0,0.07535041]
[1735463459077,0.775559,95306.0,95298.0,0.07435041]
[1735463459633,0.775559,95306.0,95298.0,0.07635041]
[1735463459845,0.505894,95305.0,95298.0,0.07635041]
[1735463460011,0.688235,95306.0,95298.0,0.07635041]
[1735463460427,0.688235,95306.0,95298.0,0.07735041]
[1735463461034,0.6883204,95306.0,95298.0,0.07735041]
[1735463461554,0.817175,95305.0,95298.0,0.07735041]
[1735463461695,0.723474,95305.0,95298.0,0.07735041]
[1735463461901,0.73563,95305.0,95298.0,0.07735041]
[1735463462728,0.73563,95305.0,95298.0,0.07535041]
[1735463463125,0.73563,95305.0,95298.0,0.07735041]
[1735463463346,0.73563,95305.0,95298.0,0.07635041]
[1735463463525,0.73563,95305.0,95298.0,0.07735041]
[1735463467938,0.73563,95305.0,95298.0,0.07635041]
[1735463468560,0.73563,95305.0,95298.0,0.07735041]
[1735463468806,0.73563,95305.0,95298.0,0.07535041]
[1735463469332,0.73563,95305.0,95298.0,0.07735041]
[1735463469910,0.73563,95305.0,95298.0,0.07635041]
[1735463470111,0.73563,95305.0,95298.0,0.07735041]
[1735463470510,0.01646517,95304.0,95298.0,0.07735041]
[1735463470715,1.026487,95303.0,95298.0,0.07735041]
[1735463471059,1.014842,95303.0,95298.0,0.07735041]
[1735463471287,1.024331,95303.0,95298.0,0.07635041]
[1735463471706,1.024331,95303.0,95298.0,0.07735041]
[1735463471953,1.024331,95303.0,95298.0,0.07535041]
[1735463472167,1.024331,95303.0,95298.0,0.07735041]
[1735463472390,1.024331,95303.0,95298.0,0.07535041]
[1735463472779,1.024331,95303.0,95298.0,0.07735041]
[1735463472935,1.024331,95303.0,95298.0,0.07635041]
[1735463473158,1.024331,95303.0,95298.0,0.07735041]
[1735463473368,1.024331,95303.0,95298.0,0.07552121]
[1735463473725,0.972429,95303.0,95298.0,0.07652121]
[1735463473934,1.026122,95303.0,95298.0,0.07752121]
[1735463474141,1.145418,95302.0,95298.0,0.07752121]
[1735463474310,1.017028,95303.0,95298.0,0.07752121]
[1735463474524,1.181989,95303.0,95298.0,0.07752121]
[1735463475066,1.0168,95303.0,95298.0,0.07552121]
[1735463475410,0.969097,95302.0,95298.0,0.07752121]
[1735463475759,0.94189,95301.0,95298.0,0.07552121]
[1735463475893,0.94189,95301.0,95298.0,0.07752121]
[1735463476251,0.94189,95301.0,95298.0,0.07552121]
[1735463476466,1.286313,95304.0,95298.0,0.07652121]
[1735463476614,0.001,95302.0,95298.0,0.07752121]
[1735463476794,1.12189,95301.0,95298.0,0.07552121]
[1735463476997,1.12289,95301.0,95298.0,0.07652121]
[1735463477244,1.12189,95300.0,95298.0,0.07652121]
[1735463477419,0.938734,95300.0,95298.0,0.07852121]
[1735463477618,0.94189,95300.0,95298.0,0.07852121]
[1735463478280,0.94189,95300.0,95298.0,0.07652121]
[1735463478486,1.285312,95304.0,95298.0,0.07652121]
[1735463478643,1.254801,95304.0,95298.0,0.07852121]
[1735463478840,1.27507,95304.0,95298.0,0.07852121]
[1735463479046,1.27507,95304.0,95298.0,0.07652121]
[1735463479242,0.001,95300.0,95298.0,0.07852121]
[1735463479449,0.936486,95299.0,95298.0,0.07852121]
[1735463479655,0.936486,95299.0,95298.0,0.08052121]
[1735463479861,0.936486,95299.0,95298.0,0.07852121]
[1735463480111,0.936486,95299.0,95298.0,0.07952121]
[1735463480685,0.936486,95299.0,95298.0,0.07852121]
[1735463480892,0.936486,95299.0,95298.0,0.08052121]
[1735463481220,1.104242,95299.0,95298.0,0.08052121]
[1735463481439,0.925242,95299.0,95298.0,0.07652121]
[1735463481635,0.925242,95299.0,95298.0,0.07852121]
[1735463481636,0.001,95299.0,95298.0,0.07852121]
[1735463482118,1.569533,95299.0,95298.0,0.07852121]
[1735463482332,1.381231,95299.0,95298.0,0.07852121]
[1735463484903,1.381231,95299.0,95298.0,0.0041708]
[1735463486631,1.381231,95299.0,95298.0,0.0021708]
[1735463487078,1.61875941,95299.0,95298.0,0.0021708]
[1735463487315,1.61775941,95299.0,95298.0,0.0001708]
[1735463487643,1.61775941,95299.0,95298.0,0.0011708]
[1735463488051,1.380231,95299.0,95298.0,0.0011708]
[1735463488289,3.423127,95300.0,95298.0,0.0011708]
[1735463488666,0.00204928,95299.0,95298.0,0.0001708]
[1735463488804,3.72840128,95299.0,95298.0,0.0001708]
[1735463489005,3.60281606,95299.0,95298.0,0.0001708]
[1735463489363,3.41236306,95299.0,95298.0,0.0001708]
[1735463489700,3.41136306,95299.0,95298.0,0.0001708]
[1735463489906,3.41236306,95299.0,95298.0,0.0001708]
[1735463490453,3.40936306,95299.0,95298.0,0.0001708]
[1735463490801,3.35877106,95299.0,95298.0,0.0001708]
[1735463491008,2.64638506,95299.0,95298.0,0.0001708]
[1735463491214,2.64538506,95299.0,95298.0,0.0011708]
[1735463493417,2.71047038,95299.0,95298.0,0.0011708]
[1735463494071,2.60648406,95299.0,95298.0,0.0011708]
[1735463494605,2.53060206,95299.0,95298.0,0.0011708]
[1735463495512,2.7668853,95299.0,95298.0,0.0011708]
[1735463495944,2.75041924,95299.0,95298.0,0.0011708]
[1735463496302,2.57123724,95299.0,95298.0,0.0011708]
[1735463496848,2.57132264,95299.0,95298.0,0.0011708]
[1735463497478,2.58778914,95299.0,95298.0,0.0011708]
[1735463497682,0.25283514,95299.0,95298.0,0.0011708]
[1735463497810,2.71820514,95299.0,95298.0,0.0011708]
[1735463498012,0.0165519,95299.0,95298.0,0.0011708]
[1735463498254,2.62346918,95299.0,95298.0,0.0011708]
[1735463498440,2.72640622,95299.0,95298.0,0.0011708]
[1735463499139,2.6224199,95299.0,95298.0,0.0011708]
[1735463499752,1.9467939,95299.0,95298.0,0.0011708]
[1735463499949,1.8801159,95299.0,95298.0,0.0011708]
[1735463500285,1.7839059,95299.0,95298.0,0.0011708]
[1735463500636,1.7721019,95299.0,95298.0,0.0011708]
[1735463500844,1.7445089,95299.0,95298.0,0.0011708]
[1735463501139,1.7236309,95299.0,95298.0,0.0011708]
[1735463503410,1.7071644,95299.0,95298.0,0.0011708]
[1735463506659,1.72363025,95299.0,95298.0,0.0011708]
[1735463509917,2.40737725,95299.0,95298.0,0.0011708]
[1735463510049,2.62067925,95299.0,95298.0,0.0011708]
[1735463510294,2.71205225,95299.0,95298.0,0.0011708]
[1735463510674,2.52940225,95299.0,95298.0,0.0011708]
[1735463511106,2.29642825,95299.0,95298.0,0.0011708]
[1735463512262,2.29642825,95299.0,95298.0,0.0001708]
[1735463512463,2.2799624,95299.0,95298.0,0.0001708]
[1735463512662,2.2809624,95299.0,95298.0,0.0031708]
[1735463512883,2.2809624,95299.0,95298.0,0.0001708]
[1735463513104,2.2648104,95299.0,95298.0,0.0001708]
[1735463513422,2.2648104,95299.0,95298.0,0.0011708]
[1735463513921,2.2638104,95299.0,95298.0,0.0001708]
[1735463514381,2.2638104,95299.0,95298.0,0.0011708]
[1735463515568,0.67318222,95299.0,95298.0,0.1266708]
[1735463515782,0.55358022,95299.0,95298.0,0.1266708]
[1735463516406,0.55358022,95299.0,95298.0,0.1256708]
[1735463516718,0.55358022,95299.0,95298.0,0.1276708]
[1735463516919,0.34195084,95299.0,95298.0,0.1276708]
[1735463517239,0.01646535,95299.0,95298.0,0.1276708]
[1735463517566,1.19080135,95299.0,95298.0,0.1306708]
[1735463517983,0.79023735,95299.0,95298.0,0.1326708]
[1735463518178,0.79023735,95299.0,95298.0,0.14595496]
[1735463518805,0.79023735,95299.0,95298.0,0.1326708]
[1735463519525,0.79032275,95299.0,95298.0,0.1326708]
[1735463523834,0.7738574,95299.0,95298.0,0.1326708]
[1735463524806,0.0010854,95299.0,95298.0,0.1326708]
[1735463525009,1.1116494,95299.0,95298.0,0.1326708]
[1735463525212,1.0883314,95299.0,95298.0,0.1326708]
[1735463525787,1.0109634,95299.0,95298.0,0.1326708]
[1735463526720,0.9248214,95299.0,95298.0,0.1326708]
[1735463526914,0.94128675,95299.0,95298.0,0.1326708]
[1735463527092,0.91797375,95299.0,95298.0,0.1326708]
[1735463527883,0.90145975,95299.0,95298.0,0.1326708]
[1735463528083,0.88326575,95299.0,95298.0,0.1326708]
[1735463528306,0.87018875,95299.0,95298.0,0.1326708]
[1735463530376,0.87018875,95299.0,95298.0,0.0071708]
[1735463530579,0.95723325,95299.0,95298.0,0.0071708]
[1735463530935,0.87018875,95299.0,95298.0,0.0071708]
[1735463533853,0.87018875,95299.0,95298.0,0.0051708]
[1735463534335,0.8527234,95299.0,95298.0,0.0021708]
[1735463534720,0.8537234,95299.0,95298.0,0.0081708]
[1735463535385,0.8537234,95299.0,95298.0,0.0061708]
[1735463535768,0.8537234,95299.0,95298.0,0.0081708]
[1735463536872,0.8537234,95299.0,95298.0,0.0061708]
[1735463537204,0.87018947,95299.0,95298.0,0.0061708]
[1735463537322,0.86918947,95299.0,95298.0,0.0001708]
[1735463537525,0.01655147,95299.0,95298.0,0.0001708]
[1735463537729,2.60901575,95299.0,95298.0,0.0021708]
[1735463537932,2.60596047,95299.0,95298.0,0.0001708]
[1735463538238,2.45424947,95299.0,95298.0,0.0021708]
[1735463539746,2.42250047,95299.0,95298.0,0.0021708]
[1735463540088,2.38019747,95299.0,95298.0,0.0021708]
[1735463540587,2.38019747,95299.0,95298.0,0.0001708]
[1735463540792,2.38019747,95299.0,95298.0,0.0011708]
[1735463540949,2.13370889,95299.0,95298.0,0.0011708]
[1735463541203,0.01646633,95299.0,95298.0,0.0001708]
[1735463541400,2.63523061,95299.0,95298.0,0.0011708]
[1735463541604,2.34774533,95299.0,95298.0,0.0011708]
[1735463542054,2.34874533,95299.0,95298.0,0.0011708]
[1735463542655,2.34774533,95299.0,95298.0,0.0011708]
[1735463543258,2.07781883,95299.0,95298.0,0.0011708]
[1735463547186,2.315223,95299.0,95298.0,0.0011708]
[1735463547567,2.30463,95299.0,95298.0,0.0011708]
[1735463553738,2.29963,95299.0,95298.0,0.0011708]
[1735463555028,2.2997154,95299.0,95298.0,0.0011708]
[1735463558712,1.5485694,95299.0,95298.0,0.0011708]
[1735463558900,1.5318644,95299.0,95298.0,0.0011708]
[1735463568088,8.54e-05,95299.0,95298.0,0.0011708]
[1735463568215,1.4643074,95299.0,95298.0,0.0011708]
[1735463568809,1.0793574,95299.0,95298.0,0.0011708]
[1735463577380,1.26858667,95299.0,95298.0,0.0011708]
[1735463580183,1.56988267,95299.0,95298.0,0.0011708]
[1735463581098,1.55385567,95299.0,95298.0,0.0011708]
[1735463581904,1.3646264,95299.0,95298.0,0.0011708]
[1735463583978,1.1990104,95299.0,95298.0,0.0011708]
[1735463584674,1.1326664,95299.0,95298.0,0.0011708]
[1735463596495,1.32196952,95299.0,95298.0,0.0011708]
[1735463597469,1.1326664,95299.0,95298.0,0.0011708]
[1735463598540,1.1326664,95299.0,95298.0,0.0813708]
[1735463600326,1.32201445,95299.0,95298.0,0.0813708]
[1735463602873,0.18943345,95299.0,95298.0,0.0813708]
[1735463603242,1.60474645,95299.0,95298.0,0.0813708]
[1735463605709,1.4153984,95299.0,95298.0,0.0813708]
[1735463606647,1.3899454,95299.0,95298.0,0.0813708]
[1735463607520,1.3630564,95299.0,95298.0,0.0813708]
[1735463607909,1.3492564,95299.0,95298.0,0.0813708]
[1735463612310,1.2927214,95299.0,95298.0,0.0813708]
[1735463614450,1.06641189,95299.0,95298.0,0.0813708]
[1735463616245,1.06641189,95299.0,95298.0,0.0011708]
[1735463622324,1.11281017,95299.0,95298.0,0.0011708]
[1735463622530,1.06641189,95299.0,95298.0,0.0011708]
[1735463623074,8.54e-05,95299.0,95298.0,0.0011708]
[1735463623270,3.20641568,95299.0,95298.0,0.0011708]
[1735463623525,3.2053664,95299.0,95298.0,0.0011708]
[1735463624197,3.2063664,95299.0,95298.0,0.0011708]
[1735463624636,3.1449784,95299.0,95298.0,0.0011708]
[1735463624835,3.1469784,95299.0,95298.0,0.0001708]
[1735463625063,3.1499784,95299.0,95298.0,0.0001708]
[1735463625464,3.0697714,95299.0,95298.0,0.0001708]
[1735463625778,3.0717714,95299.0,95298.0,0.0001708]
[1735463626382,2.9619724,95299.0,95298.0,0.0001708]
[1735463626701,2.7862024,95299.0,95298.0,0.0001708]
[1735463626985,2.7842024,95299.0,95298.0,0.0001708]
[1735463627205,2.7707514,95299.0,95298.0,0.0001708]
[1735463627328,2.7717514,95299.0,95298.0,0.0001708]
[1735463627540,2.6817124,95299.0,95298.0,0.0001708]
[1735463627749,2.2404434,95299.0,95298.0,0.0001708]
[1735463628281,2.1428244,95299.0,95298.0,0.0001708]
[1735463629005,2.1190364,95299.0,95298.0,0.0001708]
[1735463632662,2.20018545,95299.0,95298.0,0.0001708]
[1735463634093,2.1190364,95299.0,95298.0,0.0001708]
[1735463634899,2.1190364,95299.0,95285.0,0.0001708]
[1735463634900,0.0802,95296.0,95285.0,0.0001708]
[1735463635136,3.74985928,95295.0,95285.0,0.0001708]
[1735463635318,3.742708,95294.0,95285.0,0.0001708]
[1735463635523,3.6199376,95293.0,95285.0,0.0001708]
[1735463635743,3.378377,95292.0,95285.0,0.0001708]
[1735463635946,0.00104928,95291.0,95285.0,0.0001708]
[1735463636152,3.455538,95290.0,95285.0,0.0001708]
[1735463636316,0.00104928,95289.0,95285.0,0.0001708]
[1735463636516,3.415727,95288.0,95285.0,0.0001708]
[1735463636717,0.08235648,95287.0,95285.0,0.0011708]
[1735463637011,3.105885,95286.0,95285.0,0.0001708]
[1735463637209,2.921197,95286.0,95285.0,0.0011708]
[1735463637438,3.1288,95289.0,95285.0,0.0011708]
[1735463637639,0.00104928,95288.0,95285.0,0.0001708]
[1735463637793,0.006,95287.0,95285.0,0.0011708]
[1735463637981,0.00104928,95286.0,95285.0,0.0001708]
[1735463638332,2.99231028,95286.0,95285.0,0.0001708]
[1735463638495,2.995261,95286.0,95285.0,0.0001708]
[1735463639414,0.004,95286.0,95285.0,0.0001708]
[1735463639621,0.24134162,95286.0,95285.0,0.0001708]
[1735463639831,2.91858834,95286.0,95285.0,0.0001708]
[1735463640201,2.91458834,95286.0,95285.0,0.0001708]
[1735463640413,2.680296,95286.0,95285.0,0.0001708]
[1735463640843,2.678296,95286.0,95285.0,0.0001708]
[1735463641179,2.679296,95286.0,95285.0,0.0001708]
[1735463641393,2.652158,95286.0,95285.0,0.0001708]
[1735463641946,2.75614432,95286.0,95285.0,0.0001708]
[1735463642199,2.652158,95286.0,95285.0,0.0001708]
[1735463643370,2.633131,95286.0,95285.0,0.0001708]
[1735463643576,1.910968,95286.0,95285.0,0.0001708]
[1735463644047,1.910968,95286.0,95285.0,0.0756708]
[1735463644248,0.924987,95286.0,95285.0,0.0756708]
[1735463644463,0.923987,95286.0,95285.0,0.0756708]
[1735463644658,1.368349,95287.0,95285.0,0.0756708]
[1735463644867,1.418977,95287.0,95285.0,0.0766708]
[1735463645063,1.754361,95290.0,95285.0,0.0766708]
[1735463645263,1.69648228,95289.0,95285.0,0.0766708]
[1735463645467,1.236045,95288.0,95285.0,0.0766708]
[1735463645689,0.001,95286.0,95285.0,0.0766708]
[1735463645897,1.323968,95286.0,95285.0,0.0766708]
[1735463646199,1.322968,95286.0,95285.0,0.0756708]
[1735463646395,1.322968,95286.0,95285.0,0.0796708]
[1735463646625,1.322968,95286.0,95285.0,0.0776708]
[1735463646781,1.229122,95286.0,95285.0,0.0776708]
[1735463646975,1.230122,95286.0,95285.0,0.0776708]
[1735463647198,1.230122,95286.0,95285.0,0.0796708]
[1735463648209,1.229122,95286.0,95285.0,0.0776708]
[1735463648744,1.229122,95286.0,95285.0,0.0756708]
[1735463648948,1.229122,95286.0,95285.0,0.0776708]
[1735463649839,1.230122,95286.0,95285.0,0.0796708]
[1735463655783,1.33410832,95286.0,95285.0,0.0796708]
[1735463658367,0.10498632,95286.0,95285.0,0.0796708]
[1735463658503,0.001,95286.0,95285.0,0.0796708]
[1735463658709,2.127095,95286.0,95285.0,0.0796708]
[1735463660377,2.043541,95286.0,95285.0,0.0796708]
[1735463664747,2.043541,95286.0,95285.0,0.0776708]
[1735463664956,2.043541,95286.0,95285.0,0.0786708]
[1735463665388,2.042541,95286.0,95285.0,0.0766708]
[1735463665600,2.042541,95286.0,95285.0,0.0756708]
[1735463665821,2.14652732,95286.0,95285.0,0.0021708]
[1735463666021,2.042541,95286.0,95285.0,0.0001708]
[1735463666400,2.042541,95286.0,95285.0,0.0021708]
[1735463667164,2.042541,95286.0,95285.0,0.0001708]
[1735463667443,2.042541,95286.0,95285.0,0.0021708]
[1735463667942,2.042541,95286.0,95285.0,0.0011708]
[1735463668479,2.14652732,95286.0,95285.0,0.0001708]
[1735463669586,2.14652732,95286.0,95285.0,0.0011708]
[1735463669979,2.33543711,95286.0,95285.0,0.0011708]
[1735463671080,2.14652732,95286.0,95285.0,0.0011708]
[1735463674996,2.042541,95286.0,95285.0,0.0011708]
[1735463678523,2.27883334,95286.0,95285.0,0.0011708]
[1735463680823,2.042541,95286.0,95285.0,0.0011708]
[1735463682546,8.54e-05,95287.0,95285.0,0.0011708]
[1735463682757,2.855557,95286.0,95285.0,0.0011708]
[1735463683802,2.779341,95286.0,95285.0,0.0011708]
[1735463684355,2.697182,95286.0,95285.0,0.0011708]
[1735463684559,2.604797,95286.0,95285.0,0.0011708]
[1735463684847,2.529166,95286.0,95285.0,0.0011708]
[1735463685019,2.469418,95286.0,95285.0,0.0828708]
[1735463688950,2.469418,95286.0,95285.0,0.0011708]
[1735463690747,2.70593114,95286.0,95285.0,0.0011708]
[1735463691754,2.469418,95286.0,95285.0,0.0011708]
[1735463694375,2.469418,95286.0,95285.0,0.0001708]
[1735463694567,2.470418,95286.0,95285.0,0.0001708]
[1735463694990,2.471418,95286.0,95285.0,0.0001708]
[1735463695348,2.470418,95286.0,95285.0,0.0001708]
[1735463695755,2.471418,95286.0,95285.0,0.0001708]
[1735463696884,2.57540432,95286.0,95285.0,0.0001708]
[1735463697501,2.471418,95286.0,95285.0,0.0001708]
[1735463697902,2.469418,95286.0,95285.0,0.0001708]
[1735463698128,2.471418,95286.0,95285.0,0.0001708]
[1735463699018,2.315738,95286.0,95285.0,0.0001708]
[1735463700941,0.002,95286.0,95285.0,0.0001708]
[1735463701294,2.65232006,95286.0,95285.0,0.0001708]
[1735463701457,2.35174378,95286.0,95285.0,0.0001708]
[1735463701802,2.16976178,95286.0,95285.0,0.0001708]
[1735463704244,2.16876178,95286.0,95285.0,0.0001708]
[1735463704376,2.16776178,95286.0,95285.0,0.0001708]
[1735463704719,2.16976178,95286.0,95285.0,0.0001708]
[1735463705200,2.16876178,95286.0,95285.0,0.0001708]
[1735463705405,2.16876178,95286.0,95285.0,0.0031708]
[1735463706905,2.16876178,95286.0,95285.0,0.0831708]
[1735463706906,2.080868,95286.0,95285.0,0.0831708]
[1735463711077,2.079868,95286.0,95285.0,0.0801708]
[1735463711493,2.079868,95286.0,95285.0,0.0811708]
[1735463712843,2.079868,95286.0,95285.0,0.0011708]
[1735463713829,2.18385432,95286.0,95285.0,0.0011708]
[1735463718095,2.18485432,95286.0,95285.0,0.0001708]
[1735463718440,2.18585432,95286.0,95285.0,0.0001708]
[1735463721686,2.18485432,95286.0,95285.0,0.0001708]
[1735463721903,2.18585432,95286.0,95285.0,0.0001708]
[1735463722309,2.080868,95286.0,95285.0,0.0001708]
[1735463722514,2.016369,95286.0,95285.0,0.0001708]
[1735463722751,1.934847,95286.0,95285.0,0.0001708]
[1735463723110,1.933847,95286.0,95285.0,0.0001708]
[1735463723532,1.899149,95286.0,95285.0,0.0001708]
[1735463724467,1.819706,95286.0,95285.0,0.0001708]
[1735463724673,1.799661,95286.0,95285.0,0.0001708]
[1735463726202,1.89019781,95286.0,95285.0,0.0001708]
[1735463726997,1.799661,95286.0,95285.0,0.0001708]
[1735463736889,1.61592218,95286.0,95285.0,0.0001708]
[1735463737246,1.781554,95286.0,95285.0,0.0001708]
[1735463740628,2.01817626,95286.0,95285.0,0.0001708]
[1735463740830,2.01817626,95286.0,95285.0,0.0818708]
[1735463741494,1.781554,95286.0,95285.0,0.0818708]
[1735463749271,1.781554,95286.0,95285.0,0.07774067]
[1735463749474,1.781554,95286.0,95285.0,0.06855701]
[1735463759218,1.781554,95286.0,95285.0,0.06872781]
[1735463759597,1.7816394,95286.0,95285.0,0.06872781]
[1735463760827,3.0088274,95286.0,95285.0,0.06872781]
[1735463760985,2.9733574,95286.0,95285.0,0.06872781]
[1735463762032,3.4686504,95286.0,95285.0,0.06872781]
[1735463762378,3.0030454,95286.0,95285.0,0.06872781]
[1735463763141,2.99741672,95286.0,95285.0,0.0001708]
[1735463765940,2.99741672,95286.0,95280.0,0.04313987]
[1735463766130,3.18935428,95285.0,95278.0,0.0802]
[1735463766310,3.188261,95284.0,95278.0,0.07501858]
[1735463766489,0.1048512,95283.0,95278.0,0.07501858]
[1735463766704,3.159697,95282.0,95278.0,0.07501858]
[1735463766902,0.00104928,95281.0,95278.0,0.07501858]
[1735463767121,2.757561,95280.0,95278.0,0.07501858]
[1735463767299,0.00104928,95279.0,95278.0,0.07501858]
[1735463767506,1.94813228,95279.0,95278.0,0.07501858]
[1735463767703,2.038002,95279.0,95278.0,0.07501858]
[1735463768004,1.838423,95279.0,95278.0,0.07601858]
[1735463768206,1.87549,95280.0,95278.0,0.07501858]
[1735463768529,0.00104928,95279.0,95278.0,0.07601858]
[1735463768729,1.87653928,95279.0,95278.0,0.07701858]
[1735463768997,1.87549,95280.0,95278.0,0.07701858]
[1735463769202,1.85653928,95279.0,95278.0,0.07601858]
[1735463769411,1.85549,95279.0,95278.0,0.07601858]
[1735463769590,1.85549,95280.0,95278.0,0.07701858]
[1735463769793,0.00104928,95279.0,95278.0,0.07701858]
[1735463770010,1.81947228,95279.0,95278.0,0.07601858]
[1735463770219,1.818423,95279.0,95278.0,0.07501858]
[1735463770559,0.836538,95280.0,95278.0,0.07430199]
[1735463770759,1.379677,95280.0,95278.0,0.07330199]
[1735463770965,0.183749,95279.0,95278.0,0.07330199]
[1735463771167,0.146448,95279.0,95278.0,0.12280199]
[1735463771466,0.38640498,95280.0,95278.0,0.0495]
[1735463771596,0.36371,95279.0,95278.0,0.0495]
[1735463772001,0.36371,95279.0,95278.0,0.0485]
[1735463772206,0.36371,95279.0,95278.0,0.0486708]
[1735463772602,1.699945,95285.0,95278.0,0.0486708]
[1735463772803,1.591544,95285.0,95278.0,0.0496708]
[1735463773023,1.422911,95285.0,95278.0,0.0496708]
[1735463773241,0.001,95279.0,95278.0,0.0526708]
[1735463773574,0.31721,95279.0,95278.0,0.1288708]
[1735463773811,0.31721,95279.0,95278.0,0.1318708]
[1735463773984,0.31621,95279.0,95278.0,0.1318708]
[1735463774160,1.501513,95284.0,95278.0,0.0486708]
[1735463774445,1.501513,95284.0,95279.0,0.0792]
[1735463775298,1.550185,95285.0,95279.0,0.0792]
[1735463775565,1.550185,95285.0,95279.0,0.0822]
[1735463776068,1.358462,95285.0,95279.0,0.0822]
[1735463776267,1.549732,95285.0,95279.0,0.0792]
[1735463776564,1.549732,95285.0,95279.0,0.0812]
[1735463776725,0.001,95284.0,95279.0,0.0812]
[1735463776923,1.709638,95283.0,95279.0,0.0812]
[1735463777460,1.835453,95285.0,95279.0,0.0852]
[1735463777663,1.676453,95285.0,95279.0,0.0852]
[1735463777840,1.611597,95284.0,95279.0,0.0812]
[1735463778057,0.001,95283.0,95279.0,0.0862]
[1735463778213,1.530683,95283.0,95279.0,0.07698931]
[1735463778431,1.25549,95282.0,95279.0,0.07498931]
[1735463778636,1.22439,95282.0,95279.0,0.07498931]
[1735463779014,1.242723,95282.0,95279.0,0.06881149]
[1735463779405,1.242723,95282.0,95279.0,0.06866643]
[1735463779581,1.242723,95282.0,95279.0,0.07266643]
[1735463779759,1.242723,95282.0,95279.0,0.06966643]
[1735463779963,1.242723,95282.0,95279.0,0.06566643]
[1735463780189,1.67071,95285.0,95279.0,0.06566643]
[1735463780595,1.67071,95285.0,95279.0,0.06866643]
[1735463780940,0.001,95282.0,95279.0,0.07266643]
[1735463781072,1.599141,95281.0,95279.0,0.06866643]
[1735463781407,1.400059,95285.0,95279.0,0.07266643]
[1735463781772,1.337098,95284.0,95279.0,0.06966643]
[1735463781976,1.337098,95284.0,95279.0,0.07166643]
[1735463782560,1.337098,95284.0,95279.0,0.06766643]
[1735463782760,1.813882,95285.0,95279.0,0.06566643]
[1735463783060,0.001,95281.0,95279.0,0.07266643]
[1735463783246,1.033213,95280.0,95279.0,0.06883723]
[1735463783404,1.6031064,95285.0,95279.0,0.06883723]
[1735463783617,1.551535,95284.0,95279.0,0.06983723]
[1735463783962,1.470582,95283.0,95279.0,0.06583723]
[1735463784174,0.001,95281.0,95279.0,0.06983723]
[1735463784372,1.030057,95280.0,95279.0,0.06583723]
[1735463785229,1.030057,95280.0,95279.0,0.06783723]
[1735463785635,1.030057,95280.0,95279.0,0.07183723]
[1735463785828,0.001,95281.0,95279.0,0.06983723]
[1735463786040,1.130023,95280.0,95279.0,0.06583723]
[1735463786239,0.001,95280.0,95279.0,0.06983723]
[1735463786415,0.001,95280.0,95279.0,0.07283723]
[1735463786814,1.163664,95280.0,95279.0,0.07283723]
[1735463787038,1.1473,95280.0,95279.0,0.07283723]
[1735463787276,1.127867,95280.0,95279.0,0.07283723]
[1735463788974,0.924611,95280.0,95279.0,0.06983723]
[1735463789471,0.923611,95280.0,95279.0,0.06783723]
[1735463789670,0.924611,95280.0,95279.0,0.07183723]
[1735463789894,1.125683,95280.0,95279.0,0.06872108]
[1735463790033,2.307107,95280.0,95279.0,0.06872108]
[1735463790246,2.186202,95280.0,95279.0,0.06872108]
[1735463790693,1.966203,95280.0,95279.0,0.06872108]
[1735463790853,1.491217,95280.0,95279.0,0.06872108]
[1735463791298,1.196618,95280.0,95279.0,0.06872108]
[1735463793223,1.174769,95280.0,95279.0,0.06872108]
[1735463793435,1.173769,95280.0,95279.0,0.06272108]
[1735463793636,1.723628,95284.0,95279.0,0.06672108]
[1735463793877,1.723628,95284.0,95279.0,0.06872108]
[1735463794078,1.723628,95284.0,95279.0,0.0615709]
[1735463794581,1.723628,95284.0,95279.0,0.0645709]
[1735463794754,1.723628,95284.0,95279.0,0.0615709]
[1735463795176,1.723628,95284.0,95279.0,0.0595709]
[1735463795912,1.723628,95284.0,95279.0,0.0605709]
[1735463796078,1.723628,95284.0,95279.0,0.0625709]
[1735463796412,1.723628,95284.0,95279.0,0.0615709]
[1735463796746,1.723628,95284.0,95279.0,0.0625709]
[1735463798206,1.82761432,95284.0,95279.0,0.0625709]
[1735463798420,1.78943,95283.0,95279.0,0.05942484]
[1735463798550,1.815741,95284.0,95279.0,0.0531739]
[1735463798758,1.852537,95284.0,95279.0,0.0531739]
[1735463798963,1.81046,95284.0,95279.0,0.0531739]
[1735463799158,8.54e-05,95285.0,95279.0,0.0521739]
[1735463799403,1.563355,95284.0,95279.0,0.0521739]
[1735463799579,1.563355,95284.0,95279.0,0.0531739]
[1735463800058,1.563355,95284.0,95279.0,0.0521739]
[1735463801204,1.515234,95284.0,95279.0,0.0521739]
[1735463801463,1.46817,95284.0,95279.0,0.0521739]
[1735463801747,1.46817,95284.0,95279.0,0.0531739]
[1735463806361,1.4682554,95284.0,95279.0,0.0531739]
[1735463806517,1.550674,95283.0,95279.0,0.0531739]
[1735463807471,1.550674,95283.0,95279.0,0.0511739]